Cogmind - Beta 14 @@@ ROGUE MODE // 2025.03.12 @ 17:21:26 Player: Skergy Result: Destroyed by 20-72H(R) with Subdweller Laser Performance ------------- Evolutions (0) 0 Regions Visited (2) 400 Robots Destroyed (18) 90 Value Destroyed (467) 467 Prototype IDs (1) 20 Alien Tech Used (0) 0 Bonus (0) 0 TOTAL SCORE: 977 Bonus ------- None Cogmind --------- Core Integrity 0/250 Matter 300/300 Energy 22/170 System Corruption 0% Temperature Cool (40) Movement Rolling (140) Ox4 Location -10/Subcaves Parts ------- > --- POWER (1) -------- Makeshift Power Source > --- PROPULSION (2) --- Wheel Wheel > --- UTILITY (2) ------ Huge Storage Unit > --- WEAPON (2) ------- Advanced Beam Cannon Advanced Beam Cannon > --- INVENTORY (25) --- Light Ion Engine Wheel Subdweller Monowheel Improved Heat Sink Subdweller Optics Signal Interpreter Weapon Shielding Scrap Shield Spread Laser Spread Laser Spread Laser Subdweller Laser Light Assault Rifle Autogun Autogun Battle Cannon Battle Cannon Grenade Launcher Flail Flail Peak State ------------ > --- POWER ------------ Makeshift Power Source > --- PROPULSION ------- Wheel Wheel > --- UTILITY ---------- Improved Heat Sink Huge Storage Unit > --- WEAPON ----------- Spread Laser Advanced Beam Cannon > --- INVENTORY -------- Light Ion Engine Wheel Subdweller Monowheel Subdweller Optics Signal Interpreter Weapon Shielding Scrap Shield Shield Generator Spread Laser Spread Laser Subdweller Laser Advanced Beam Cannon Light Assault Rifle Autogun Autogun Grenade Launcher Plasma Cutter Flail Flail [Rating: 18] Favorites ----------- Power Light Ion Engine Engine Light Ion Engine Propulsion Light Treads Treads Light Treads Wheel Wheel Utility Huge Storage Unit Device Shield Generator Storage Huge Storage Unit Protection Weapon Shielding Weapon Spread Laser Energy Gun Spread Laser Energy Cannon Advanced Beam Cannon Special Weapon Plasma Cutter Impact Weapon Flail Build | -11 -10 -10 ------- Run | Yrd Mat Sub Slots Evolved . | . . . Power . | . . . Propulsion . | . . . Utility . | . . . Weapon . | . . . Parts Attached 25 | 6 9 10 Power 3 | 1 . 2 Engine 3 | 1 . 2 Core . | . . . Reactor . | . . . Propulsion 4 | 2 1 1 Treads 2 | 2 . . Leg . | . . . Wheel 2 | . 1 1 Hover . | . . . Flight . | . . . Utility 7 | 1 4 2 Device 4 | . 2 2 Storage 2 | 1 1 . Processor . | . . . Hackware . | . . . Protection 1 | . 1 . Artifact . | . . . Weapon 11 | 2 4 5 Energy Gun 5 | 2 2 1 Energy Cannon 4 | . 2 2 Ballistic Gun . | . . . Ballistic Cannon . | . . . Launcher . | . . . Special Weapon 1 | . . 1 Impact Weapon 1 | . . 1 Slashing Weapon . | . . . Piercing Weapon . | . . . Special Melee Weapon . | . . . Unidentified Prototypes 1 | . 1 . Parts Lost 4 | . 1 3 Power 1 | . . 1 Propulsion 2 | . 1 1 Utility 1 | . . 1 Weapon . | . . . Highest Loss Streak 1 | . 1 1 To Critical Strikes . | . . . Average Slot Usage (%) 97 | . 97 99 Engine 13 | . 14 13 Treads 18 | . 27 6 Wheel 9 | . . 21 Device 9 | . 6 14 Storage 14 | . 14 14 Protection 3 | . 5 . Energy Gun 17 | . 21 10 Energy Cannon 10 | . 6 16 Peak Build Rating 18 | 6 14 18 Average Rating 12 | 4 11 15 On Entrance 6 | . 6 13 Naked Turns . | . . . Heaviest Build 94 | 10 92 94 Greatest Support 40 | 40 40 20 Greatest Overweight (x) 9 | . 9 9 Average Overweight (x) 3 | . 1 5 Largest Inventory Capacity 25 | 8 25 25 Average Capacity 19 | 6 17 25 Most Carried 23 | 6 16 23 Average Carried 13 | 3 11 18 Final Capacity 25 | 8 25 25 Final Carried 21 | 6 16 21 Class Distribution -------------------- 100% | Mutant Dominant Class ---------------- Mutant | -10/Materials Mutant | -10/Subcaves Resources | -11 -10 -10 ----------- Run | Yrd Mat Sub Matter Collected 442 | 254 93 95 Remotely . | . . . Salvage Created 478 | . 338 140 Parts 31 | . 30 1 Haulers Intercepted 2 | . 2 . Recyclers Shooed . | . . . Parts Field Recycled . | . . . Retrieved Matter . | . . . Parts Self-Destructed 7 | . . 7 Prevented . | . . . Kills | -11 -10 -10 ------- Run | Yrd Mat Sub Combat Hostiles Destroyed 12 | . 8 4 Guns 8 | . 6 2 Cannons 3 | . 2 1 Classes Destroyed 7 | . 6 1 Worker 2 | . 2 . Builder 1 | . 1 . Hauler 2 | . 2 . Watcher 1 | . 1 . Swarmer 2 | . 2 . Grunt 6 | . 6 . Subdweller 4 | . . 4 Best Kill Streak 4 | . 4 2 Combat Bots Only 3 | . 3 2 Max Kills in Single Turn 1 | . 1 1 Gunslinging . | . . . Exploded . | . . . Melee . | . . . Uniques/NPCs Destroyed . | . . . Combat | -11 -10 -10 -------- Run | Yrd Mat Sub Hostile Shots Fired 67 | . 30 37 Missed 13 | . 5 8 Damage Taken 966 | . 420 546 Core 257 | . 72 185 Absorbed by Shields 75 | . 12 63 Redirected to Shielding 3 | . 3 . Core Remaining (%) 100 | 100 . . Volleys Fired 53 | . 31 22 Largest 2 | . 2 2 Hottest 136 | . 133 136 Shots Fired 93 | . 55 38 Gun 47 | . 35 12 Cannon 43 | . 20 23 Launcher . | . . . Special 3 | . . 3 Kinetic . | . . . Thermal 93 | . 55 38 Explosive . | . . . Electromagnetic . | . . . Robot Hit Streak 18 | . 9 18 Robot Miss Streak 11 | . 11 2 Penetration Max . | . . . Secondary Targets . | . . . Shots Hit Robots 74 | . 42 32 Core Hits 67 | . 47 20 Critical Kills 1 | . . 1 Critical Parts Destroyed . | . . . Critical Strikes 1 | . . 1 Meltdown 1 | . . 1 Melee Attacks 3 | . . 3 Impact 3 | . . 3 Slashing . | . . . Piercing . | . . . Sneak Attacks . | . . . Combat Hostiles . | . . . Follow-up Attacks . | . . . Damage Inflicted 1460 | . 813 647 Guns 624 | . 388 236 Cannons 616 | . 205 411 Explosions 215 | . 215 . Melee . | . . . Ramming 5 | . 5 . Kinetic . | . . . Thermal 1417 | . 770 647 Explosive 38 | . 38 . Electromagnetic . | . . . Impact . | . . . Slashing . | . . . Piercing . | . . . Highest Corruption . | . . . Average Corruption . | . . . Corruption Purged . | . . . Corruption Blocked . | . . . Overload Shots . | . . . Overflow Damage 176 | . 176 . Projectiles . | . . . Explosions 176 | . 176 . Melee . | . . . Knockbacks . | . . . Impact . | . . . Kinetic . | . . . Secondary . | . . . Self-Inflicted Damage 110 | . 110 . Shots 1 | . 1 . Rammed 1 | . 1 . Targets Rammed 1 | . 1 . Kicked . | . . . Crushed . | . . . Highest Temperature 370 | . 370 98 Average Temperature 114 | . 124 38 Received Heat Transfer 267 | . 153 114 Effects 2 | . 2 . Energy Bleed 1 | . 1 . Interference 1 | . 1 . Siege Activations . | . . . Robots Corrupted . | . . . Combat Hostiles . | . . . Parts Fried . | . . . Impact Corruptions . | . . . Robots Melted 1 | . . 1 Combat Hostiles 1 | . . 1 Parts Melted 2 | . . 2 Heat Transferred 1945 | . 925 1020 Parts Sabotaged . | . . . Parts Stolen . | . . . Parts Stripped . | . . . Power Chain Reactions . | . . . Alert | -11 -10 -10 ------- Run | Yrd Mat Sub Peak Influence 167 | . 167 . Initial . | . . . Average 61 | . 67 . Maximum Alert Level . | . . . Low Security (%) 100 | 100 100 . Level 1 . | . . . Level 2 . | . . . Level 3 . | . . . Level 4 . | . . . Level 5 . | . . . High Security . | . . . Max Security . | . . . Squads Dispatched 1 | . 1 . Investigation 1 | . 1 . Extermination . | . . . Reinforcement . | . . . Assault . | . . . Garrison . | . . . Intercept . | . . . Searches Triggered . | . . . Construction Impeded . | . . . Haulers Reinforced . | . . . Active Scanning Responses . | . . . Cargo Convoy Interrupts . | . . . Stealth | -11 -10 -10 --------- Run | Yrd Mat Sub Distress Signals 2 | . 2 . Communications Jammed . | . . . Distress Signals . | . . . Times Spotted 24 | . 17 7 Peak Tracking Total 4 | . 4 3 Tactical Retreats . | . . . Traps | -11 -10 -10 ------- Run | Yrd Mat Sub Traps Triggered 2 | . 2 . Indirectly . | . . . Trap Hack Attempts . | . . . Triggered . | . . . Disarmed . | . . . Reprogrammed . | . . . Reused . | . . . Traps Extracted . | . . . Installed . | . . . Triggered . | . . . Machines | -11 -10 -10 ---------- Run | Yrd Mat Sub Machines Disabled 3 | . 3 . Max in Single Turn 2 | . 2 . Machines Repaired . | . . . Machines Dismantled . | . . . Machines Sabotaged . | . . . Overloaded Fab Kills . | . . . Hacking | -11 -10 -10 --------- Run | Yrd Mat Sub Machines Accessed 3 | . 2 1 Terminals 1 | . 1 . Fabricators . | . . . Repair Stations . | . . . Recycling Units 1 | . 1 . Scanalyzers . | . . . Garrison Access . | . . . Total Hacks 11 | . 6 5 Successful 8 | . 3 5 Failed 3 | . 3 . Catastrophic . | . . . Database Lockouts . | . . . Manual 6 | . 6 . Terminals 5 | . 5 . Fabricators . | . . . Repair Stations . | . . . Recycling Units 1 | . 1 . Scanalyzers . | . . . Garrison Access . | . . . Terminal Hacks 5 | . . 5 Record 5 | . . 5 Fabricator Hacks . | . . . Repair Station Hacks . | . . . Recycling Unit Hacks . | . . . Scanalyzer . | . . . Garrison Access Hacks . | . . . Unauthorized Hacks 3 | . 3 . Terminals 2 | . 2 . Assimilate 1 | . 1 . Botnet 1 | . 1 . Fabricators . | . . . Repair Stations . | . . . Recycling Units 1 | . 1 . Reject 1 | . 1 . Scanalyzers . | . . . Garrison Access . | . . . Data Cores Recovered . | . . . Used . | . . . Hacking Detections 1 | . 1 . Full Trace Events . | . . . Feedback Events . | . . . Feedback Blocked . | . . . Robot Schematics Acquired . | . . . Robots Built . | . . . Authchips . | . . . Time . | . . . Total Robot Build Rating . | . . . Part Schematics Acquired . | . . . Parts Built . | . . . Authchips . | . . . Time . | . . . Total Part Build Rating . | . . . Parts Repaired . | . . . Time . | . . . Parts Recycled . | . . . Recycled Matter . | . . . Retrieved Matter . | . . . Retrieved Components . | . . . Parts Scanalyzed . | . . . Part Schematics Acquired . | . . . Parts Damaged . | . . . Bothacking | -11 -10 -10 ------------ Run | Yrd Mat Sub Used RIF Installer . | . . . Robots Hacked . | . . . Non-combat . | . . . Combat . | . . . Robot Hacks Applied . | . . . Relay Couplers Released . | . . . Fabnet Peak Effective % . | . . . Robots Rewired . | . . . Allies Hacked . | . . . Hacks Repelled . | . . . Allies | -11 -10 -10 -------- Run | Yrd Mat Sub Total Allies . | . . . Largest Group . | . . . Highest-Rated Group . | . . . Highest-Rated Ally . | . . . Total Orders . | . . . Ally Attacks . | . . . Total Damage . | . . . Kills . | . . . Allies Corrupted . | . . . Allies Melted . | . . . Intel | -11 -10 -10 ------- Run | Yrd Mat Sub Robot Analysis Total . | . . . Derelict Logs Recovered 1 | . . 1 Drone Launches . | . . . Drone Recoveries . | . . . Exploration | -11 -10 -10 ------------- Run | Yrd Mat Sub Turns Passed 1614 | 75 905 634 Spaces Moved 726 | 43 357 326 Core 7 | 7 . . Treads 370 | 36 334 . Legs . | . . . Wheels 349 | . 23 326 Hover . | . . . Flight . | . . . Fastest Speed 50 | 50 160 140 Average Speed 187 | 142 212 165 Slowest Speed 320 | 160 320 215 Overloaded Moves . | . . . Propulsion Burnouts . | . . . Robots Hopped . | . . . Cave-ins Triggered . | . . . Exploration Rate (%) 22 | 4 39 24 Regions Visited 2 Branch Regions 1 Pre-discovered Areas 1 | . . 1 Known Exits Taken . | . . . Unknown Exits Taken 2 | 1 1 . Scrap Searched 3 | . . 3 Spaces Dug 3 | . . 3 Terrain Destroyed 39 | . 36 3 Melee 3 | . . 3 Projectile . | . . . AOE 36 | . 36 . Terrain Rammed . | . . . Walls Destroyed . | . . . Machines Disabled . | . . . Actions | -11 -10 -10 --------- Run | Yrd Mat Sub Total 878 | 54 448 376 Wait 29 | . 25 4 Move 724 | 42 356 326 Hop . | . . . Pick Up 30 | 6 16 8 Fast Attach 8 | 6 2 . Attach 4 | . 1 3 Detach 2 | . 1 1 Swap 13 | . 6 7 Drop 11 | . 9 2 Fire 53 | . 31 22 Melee 3 | . . 3 Ram . | . . . Kick . | . . . Crush 1 | . 1 . Escape Stasis . | . . . Rewire . | . . . Trap . | . . . Miscellaneous . | . . . Route ------- -11/Scrapyard -10/Materials (discovered 2 exits: [*Mat] / *Sub) -10/Subcaves History --------- Turn | Location | Event 18 | -11/Scrapyard | Discovered new exit (range 16) 76 | -11/Scrapyard | Entered Materials 313 | -10/Materials | Build established: Mutant 515 | -10/Materials | Discovered new exit (range 16) 966 | -10/Materials | Discovered new exit (range 8) 981 | -10/Materials | Entered Subcaves 1002 | -10/Subcaves | A swath of the cavern ceiling suddenly collapsed 1065 | -10/Subcaves | Learned Materials emergency access door positions 1207 | -10/Subcaves | Core integrity fell below 50% 1392 | -10/Subcaves | Visited Clippyterm 1396 | -10/Subcaves | Learned location of Section 7 (-2) 1396 | -10/Subcaves | Learned 40 Factory zone layouts 1608 | -10/Subcaves | Core integrity fell below 20% 1615 | -10/Subcaves | Destroyed by 20-72H(R) with Subdweller Laser Last Messages --------------- >>Record "World Domination" It looks like you're trying to take over the world, would you like help? World map updated: -2/Section 7. >>Record "Cartography" It looks like you want to prove yourself as a member of the Cartography Club, why not cheat using advanced predictive AI techniques? Data stored: Factory zone layouts (x40). >>Record "Botnets" It looks like you seek to become a more effective hacker when it comes to the important hacks, and I heartily recommend installing Trojan(Botnet) on at least one or two Terminals to improve your odds of success elsewhere. >>Record "SUBCON Basin" It looks like you want to play with dangerous UFD tech. While I can't recommend taking subatomizers out of the Subcaves, I can warn that doing so is a one-way ticket to summoning unimaginable chaos on any area not hardened against them. That includes... just about anywhere. 01490_ Dropped Plasma Cutter. 01506_ Acquired 40 matter. 01613_ Shield Generator destroyed. Map ----- +----------------------------------------------------+ | ??# #???# #????????????????????????????????? | | ??# ????## #????????????????????????????????? | | ??###??????## ????????????????????????????????? | | ????????????## #???????????????????????????????? | | ?????????????? ##???????????????????????????????? | | ?????????????? ##???????????????????????????????? | | ???## ????? %##????????????????????????????? | | ??? ????? ## ??????????????????????????? | | ??? #???? ????????????????????????? | | ??# #???# ????????????????????????? | | ?## #### ????????????????????????? | | ?# ## #?????????????????????????? | | ?# % #?????????????????????????? | | ?? ##????????????????????????? | | ?? ? #????????????????????????? | | ??# ?# #????????????????????????? | | ??# ?## #??????????? ""???????????? | | ??? ??# #????????????"" #??????????? | | ?### #??# #???????????" " #??????????? | | ## # ###?# #????????????""" #??????????? | | # ### ###?###??????? " #???????????? | | # ##???# ##?????? #????????????? | | # ## #????# ##???? #????????????? | | # ### ##???# ##### ##????????????? | | ## ####?# ###?# R ###??????????? | | #####????# #?# @ R #???????? | | ####????????## #?# #???????? | | ##???????????## ### ## ????? | | #????????????# ### ???? | | #???????????## ##?# ????? | | ##??????###### #??## ## ###????? | | ????????# ##???## ###?? #??????? | | ????????## ##?????#####????? #??????? | | ?????????# #### ##?????????????????##??????? | | ?????????## ##???## ##??????????????????????????? | | ??????????##??????####???????????????????????????? | | ?????????????????????????????????????????????????? | | ?????????????????????????????????????????????????? | | ?????????????????????????????????????????????????? | | ?????????????????????????????????????????????????? | | ?????????????????????????????????????????????????? | | ?????????????????????????????????????????????????? | | ?????????????????????????????????????????????????? | | ?????????????????????????????????????????????????? | | ?????????????????????????????????????????????????? | | ?????????????????????????????????????????????????? | | ?????????????????????????????????????????????????? | | ?????????????????????????????????????????????????? | | ?????????????????????????????????????????????????? | | ?????????????????????????????????????????????????? | +----------------------------------------------------+ Best States ------------- Heat Dissipation 39 Energy Generation 15 Energy Capacity 170 Matter Stores 300 Matter Capacity 300 Sight Range 16 Terrain Scan Density 10 Weapon Shielding 33 Evasion (%) 40 Recoil Reduction 2 Item Schematics ----------------- None Robot Schematics ------------------ None Fabricated ------------ Nothing Alien Tech Used ----------------- None Achievements -------------- None Challenges ------------ None Game ------ Seed TachyonNodeHumpback Manual? 0 Play Time 00:16:04 Cumulative 67.4 hours Start 2025.03.12 @ 17:08:34 End 2025.03.12 @ 17:21:26 Sessions 1 Manual Loads 0 Difficulty Rogue Special Mode None Game No. 71 Rogue 71 Adventurer 0 Explorer 0 Win Type - Total 2 Types 2/0/0/0/0/0/0/0/0 Lore% 40 Gallery% 43 Achievement% 39 Wizard Run 0 Options --------- Layout 0 ASCII 0 Keyboard 1 Movement Numpad Keybinds 0 Fullscreen 1 Font 24/Terminus Map View 76x50 Zoom Use 0% Tactical HUD 1 Map Filters NONE Filters NONE Steam 1 RUN: e5ada20c-300f-4c4e-bfd7-26def8da826f